bitfinex-derivatives/quotes_ETHF0:USTF0_20250817
["timestamp","ask_amount","ask_price","bid_price","bid_amount"]
[1755416444305,1.4918,4471.8,4471.7,20.8403]
[1755416447206,0.5889,4471.8,4471.0,0.635]
[1755416447399,0.3368,4471.2,4471.1,21.0284]
[1755416447600,1.2261,4471.2,4471.1,21.2833]
[1755416448001,1.2261,4471.2,4471.1,21.9251]
[1755416448197,0.8308,4471.2,4471.1,21.9251]
[1755416449904,0.8308,4471.2,4471.1,1.4701]
[1755416450107,0.8308,4471.2,4471.1,21.9251]
[1755416450300,0.8308,4471.2,4471.1,1.4701]
[1755416450507,0.8308,4471.2,4471.1,21.9251]
[1755416452097,0.8428,4472.1,4472.0,0.5734]
[1755416452304,1.4809,4472.1,4472.0,21.6702]
[1755416456011,1.4809,4472.1,4472.0,21.9251]
[1755416459313,1.4809,4472.1,4472.0,21.6702]
[1755416460607,1.4809,4472.1,4472.0,1.2152]
[1755416460809,1.4809,4472.1,4472.0,21.6692]
[1755416461010,1.4809,4472.1,4472.0,1.2152]
[1755416461209,1.4809,4472.1,4472.0,21.9241]
[1755416462909,0.8428,4472.1,4472.0,21.6692]
[1755416463117,1.4809,4472.1,4472.0,21.6692]
[1755416463313,1.4809,4472.1,4472.0,21.9241]
[1755416465117,0.494,4472.1,4472.0,21.9241]
[1755416465510,0.3953,4472.8,4472.1,0.6418]
[1755416465712,1.66972563,4472.7,4472.6,1.4701]
[1755416465912,2.07682563,4472.7,4472.6,21.9231]
[1755416466518,3.2078,4473.4,4472.6,21.6682]
[1755416466712,2.07667427,4473.3,4473.2,1.2152]
[1755416467912,1.4809,4473.3,4473.2,1.2152]
[1755416469620,1.4809,4473.3,4473.2,1.4701]
[1755416469918,1.4809,4473.3,4472.7,3.2078]
[1755416470115,0.494,4473.1,4472.9,0.5054]
[1755416470316,0.2512,4473.1,4473.0,0.5734]
[1755416470616,0.2428,4473.3,4472.8,20.451]
[1755416470617,0.2512,4473.2,4473.1,1.227]
[1755416470919,0.2512,4473.2,4473.1,21.9211]
[1755416470920,0.6665,4473.2,4473.1,21.9211]
[1755416471120,0.8308,4473.2,4473.1,21.9211]
[1755416471420,1.2261,4473.2,4473.1,21.9211]
[1755416471615,1.4809,4473.2,4473.1,21.9211]
[1755416471823,1.4809,4472.8,4472.7,4.0084]
[1755416472016,1.4809,4472.8,4472.7,24.4594]
[1755416472216,1.4809,4472.8,4472.7,24.874]
[1755416472416,1.4809,4472.8,4472.7,4.1725]
[1755416472619,1.4809,4472.8,4472.7,24.6235]
[1755416473024,1.4809,4472.8,4472.7,4.1725]
[1755416473223,1.4809,4472.8,4472.7,24.6215]
[1755416473615,1.4809,4472.8,4472.7,24.872]
[1755416474326,1.4809,4472.8,4472.7,4.423]
[1755416474520,1.4809,4472.8,4472.7,24.872]
[1755416474914,1.4809,4472.8,4472.7,3.6171]
[1755416475127,1.4809,4472.8,4472.7,23.6568]
[1755416475426,1.4809,4472.8,4472.7,24.0481]
[1755416475625,1.4809,4472.8,4472.7,24.2912]
[1755416476428,1.4809,4472.8,4472.7,24.872]
[1755416484532,1.4809,4472.8,4472.7,25.1295]
[1755416484728,1.4809,4472.8,4472.7,4.6805]
[1755416484929,1.4809,4472.8,4472.7,25.1275]
[1755416485734,1.4809,4472.8,4472.7,4.6805]
[1755416486136,1.4809,4472.8,4472.7,25.1275]
[1755416486332,1.4809,4472.8,4472.7,4.6805]
[1755416486531,1.4809,4472.8,4472.7,25.1275]
[1755416486737,1.4809,4472.8,4472.7,24.87]
[1755416488538,0.2484,4473.3,4472.7,24.2282]
[1755416488740,0.678,4473.3,4473.2,0.5843]
[1755416488941,1.203,4473.3,4473.2,22.10427718]
[1755416489239,1.4459,4473.3,4473.2,22.10427718]
[1755416489634,1.4459,4473.3,4473.2,21.9275]
[1755416489839,1.4459,4473.3,4473.2,22.10430366]
[1755416490040,1.4459,4473.3,4473.2,1.39980366]
[1755416490236,1.4459,4473.3,4473.2,21.84580773]
[1755416491540,1.4459,4473.3,4473.2,22.10330773]
[1755416491738,1.4459,4473.3,4473.2,20.88240773]
[1755416492640,1.4459,4473.3,4473.2,21.26010773]
[1755416493036,1.4459,4473.3,4473.2,21.52110773]
[1755416493738,1.4459,4473.3,4473.2,21.84580773]
[1755416494140,1.4459,4473.3,4473.2,22.10330773]
[1755416495543,1.4459,4473.3,4473.2,21.84580773]
[1755416496646,1.4459,4473.3,4473.2,1.39980773]
[1755416496844,1.4459,4473.3,4473.2,21.84480773]
[1755416498140,0.5064,4473.8,4473.2,21.20610773]
[1755416498340,0.1716,4473.4,4473.3,0.76110773]
[1755416498539,1.203,4473.4,4473.3,0.76110773]
[1755416498744,1.203,4473.4,4473.3,0.8453]
[1755416498940,1.4459,4473.4,4473.3,1.40002739]
[1755416499340,1.4459,4473.4,4473.3,0.1770209]
[1755416499540,1.4459,4473.4,4473.3,21.4170209]
[1755416499947,1.4459,4473.4,4473.3,21.6780209]
[1755416502548,0.5799,4473.5,4473.4,1.223]
[1755416502849,1.4459,4473.5,4473.4,1.6575209]
[1755416503346,1.4459,4473.5,4473.4,0.1770209]
[1755416503542,1.4459,4473.5,4473.4,0.5547209]
[1755416504951,1.4459,4473.5,4473.4,0.55472581]
[1755416505151,1.4459,4473.5,4473.4,0.17702581]
[1755416505647,1.4459,4473.5,4473.4,0.81432581]
[1755416506453,1.4459,4473.5,4473.4,0.17702581]
[1755416506754,1.4459,4473.5,4473.2,20.443]
[1755416507150,0.866,4473.4,4473.3,0.3777]
[1755416507352,1.4459,4473.4,4473.3,0.6373]
[1755416508854,1.4459,4473.4,4473.3,1.0634]
[1755416509053,1.4459,4473.4,4473.3,1.2335]
[1755416509655,1.4459,4473.4,4473.3,1.484]
[1755416510458,4.3984,4473.9,4473.8,1.0956]
[1755416510645,5.24123199,4473.9,4473.8,1.49]
[1755416510846,3.80393199,4473.9,4473.8,1.2395]
[1755416511156,5.24123199,4473.9,4473.8,1.49]
[1755416512056,2.03343199,4473.9,4473.8,1.49]
[1755416512254,0.2588,4474.2,4474.1,0.5858]
[1755416512447,0.2588,4474.2,4474.1,0.2489]
[1755416512448,1.2906,4474.2,4474.1,0.2489]
[1755416512852,1.5373,4474.2,4474.1,0.2489]
[1755416513051,0.8769,4474.1,4473.9,20.8364]
[1755416513252,0.8113,4474.0,4473.9,21.0853]
[1755416513453,1.4373,4474.0,4473.9,21.6815]
[1755416513957,1.4373,4474.0,4473.9,1.2395]
[1755416514155,0.9712,4474.2,4474.1,0.6433]
[1755416514358,1.2906,4474.2,4474.1,1.2395]
[1755416514854,1.5373,4474.2,4474.1,1.2395]
[1755416515054,0.1588,4473.6,4473.5,0.8363]
[1755416515259,1.058,4473.6,4473.5,0.2489]
[1755416515559,1.4373,4473.6,4473.5,0.5858]
[1755416515761,1.4373,4473.6,4473.5,1.2395]
[1755416517957,1.4373,4473.6,4473.5,1.49]
[1755416518257,0.2467,4473.6,4473.5,1.49]
[1755416519554,0.817,4473.6,4473.5,1.49]
[1755416519755,1.4373,4473.6,4473.5,1.2395]
[1755416521164,1.4373,4473.6,4473.5,1.49]
[1755416521666,1.4373,4473.6,4473.5,1.2395]
[1755416522061,1.4373,4473.6,4473.5,1.49]
[1755416522258,1.4373,4473.6,4473.5,21.93]
[1755416523365,0.1,4474.2,4473.6,0.6537]
[1755416523562,0.1,4474.2,4474.1,1.49]
[1755416523756,0.1,4474.2,4474.1,21.93]
[1755416523960,0.3467,4474.2,4474.1,21.93]
[1755416524658,0.5976,4474.2,4474.1,21.93]
[1755416524859,1.5373,4474.2,4474.1,1.2395]
[1755416525163,1.5373,4474.2,4474.1,21.6795]
[1755416525559,1.5373,4474.2,4473.8,0.3944]
[1755416525863,0.5604,4473.6,4473.5,4.0179]
[1755416526065,1.4373,4473.6,4473.5,24.8873]
[1755416526567,1.4373,4473.6,4473.5,25.1378]
[1755416527064,1.4373,4473.6,4473.5,24.2336]
[1755416527269,1.4373,4473.6,4473.5,24.8873]
[1755416528167,1.4373,4473.6,4473.5,25.1378]
[1755416530069,0.2467,4473.6,4473.5,25.1378]
[1755416530370,0.3793,4474.1,4473.7,0.5858]
[1755416530570,0.2509,4474.0,4473.9,1.49]
[1755416530865,0.4097,4474.0,4473.9,1.49]
[1755416531171,1.1963,4474.0,4473.9,1.49]
[1755416531366,1.4373,4474.0,4473.9,1.49]
[1755416533770,1.4373,4474.0,4473.9,1.2395]
[1755416535073,1.4373,4474.0,4473.9,0.9802]
[1755416535369,1.4373,4474.0,4473.9,0.8101]
[1755416535963,1.4373,4474.0,4473.9,0.6433]
[1755416538570,1.4373,4474.0,4473.9,0.8101]
[1755416538771,1.4373,4474.0,4473.9,1.2202]
[1755416539368,1.4373,4474.0,4473.8,20.439]
[1755416539572,0.8788,4473.9,4473.5,3.5717]
[1755416539872,1.4719,4473.6,4473.5,4.4091]
[1755416540272,0.5931,4473.6,4473.0,3.2078]
[1755416540473,1.1129,4473.2,4473.1,21.6383]
[1755416540675,1.4719,4473.2,4473.1,21.6383]
[1755416540879,1.4719,4473.2,4473.1,21.884]
[1755416541769,1.4719,4473.2,4473.1,21.6383]
[1755416544474,1.4719,4473.2,4473.1,1.2013]
[1755416544777,1.4719,4473.2,4473.1,21.6383]
[1755416546174,1.4719,4473.2,4473.1,21.884]
[1755416546475,1.4719,4473.2,4473.1,21.6383]
[1755416546980,1.4719,4473.2,4473.1,0.2632]
[1755416547179,1.4719,4473.2,4473.1,20.437]
[1755416547473,1.4719,4473.1,4472.6,0.2487]
[1755416547672,1.4719,4473.0,4472.9,0.2632]
[1755416548076,1.4719,4473.0,4472.9,0.6271]
[1755416548277,1.4719,4473.0,4472.9,21.4769]
[1755416549269,0.8524,4472.4,4472.3,36.0064]
[1755416549577,1.4719,4472.4,4472.3,56.6891]
[1755416550170,1.4719,4472.4,4472.3,36.2521]
[1755416550373,1.4719,4472.4,4472.3,56.4434]
[1755416550575,1.4719,4472.4,4472.3,56.6891]
[1755416553476,1.4719,4472.4,4472.3,3.2078]
[1755416553779,1.4719,4472.4,4472.3,24.436]
[1755416553978,1.4719,4472.4,4472.3,24.8461]
[1755416554183,1.4719,4472.4,4472.3,24.2729]
[1755416554375,1.4719,4472.4,4472.3,24.6857]
[1755416554774,1.4719,4472.4,4472.3,24.8471]
[1755416556582,1.4719,4472.4,4472.3,4.4091]
[1755416556782,1.4719,4472.4,4472.3,24.8461]
[1755416558280,1.4719,4472.4,4472.3,25.0918]
[1755416558681,1.4719,4472.4,4472.3,24.8461]
[1755416562378,1.4719,4472.4,4472.3,4.4091]
[1755416562584,1.4719,4472.4,4472.3,24.8461]
[1755416563678,0.1,4474.2,4472.8,0.5887]
[1755416563679,0.5931,4472.9,4472.8,0.5887]
[1755416563876,0.5931,4472.9,4472.8,21.6383]
[1755416564279,1.4719,4472.9,4472.8,21.6383]
[1755416566179,0.5931,4473.0,4472.9,1.2013]
[1755416566384,1.4719,4473.0,4472.9,1.447]
[1755416566583,1.4719,4473.0,4472.9,1.2013]
[1755416567277,1.4719,4473.0,4472.8,20.437]
[1755416567480,1.4786,4472.9,4472.8,20.437]
[1755416568186,1.4786,4472.9,4472.3,3.2078]
[1755416568386,0.5956,4472.4,4472.3,3.4631]
[1755416568584,1.4786,4472.4,4472.3,24.267]
[1755416568785,1.4786,4472.4,4472.3,3.2078]
[1755416569485,1.4786,4472.4,4471.6,3.2078]
[1755416569688,0.5956,4471.8,4471.7,21.0299]
[1755416569986,1.4786,4471.8,4471.7,21.6587]
[1755416573989,1.4786,4471.8,4471.7,20.436]
[1755416575189,1.4786,4471.7,4471.1,3.5757]
[1755416575391,0.5956,4471.3,4471.2,20.8049]
[1755416575587,1.4786,4471.3,4471.2,20.8049]
[1755416575793,1.4786,4471.3,4471.2,21.2349]
[1755416575990,1.4786,4471.3,4471.2,21.6597]
[1755416578202,1.4786,4471.3,4471.2,1.2227]
[1755416578403,1.4786,4471.3,4471.2,21.6607]
[1755416580201,1.4786,4471.3,4471.2,1.2227]
[1755416580407,1.4786,4471.3,4471.2,21.6607]
[1755416581106,1.4786,4471.3,4471.2,1.2227]
[1755416581306,1.4786,4471.3,4471.2,21.6607]
[1755416581704,1.4786,4471.3,4471.2,20.6933]
[1755416581905,1.4786,4471.3,4471.2,21.0612]
[1755416582302,1.4786,4471.3,4471.2,21.2359]
[1755416582503,1.4786,4471.3,4471.2,21.4968]
[1755416582701,1.4786,4471.3,4471.2,20.438]
[1755416583107,1.4786,4471.3,4471.2,21.0612]
[1755416583315,1.4786,4471.3,4471.2,21.2359]
[1755416583604,1.4786,4471.3,4471.2,20.438]
[1755416584106,1.4786,4471.3,4471.2,20.8059]
[1755416584305,1.4786,4471.3,4471.2,21.0612]
[1755416584499,1.4786,4471.3,4471.2,21.0622]
[1755416584801,1.4786,4471.3,4471.2,21.0612]
[1755416585502,1.4786,4471.3,4471.2,21.4968]
[1755416586403,0.5956,4471.3,4471.1,20.438]
[1755416586709,1.4786,4471.2,4471.1,21.0612]
[1755416587208,1.4786,4471.2,4471.1,21.6607]
[1755416588004,0.6651,4471.7,4471.6,0.1747]
[1755416588209,1.4786,4471.7,4471.6,1.0588]
[1755416589811,1.4786,4471.7,4471.6,1.2227]
[1755416593612,0.2452,4471.7,4471.6,1.2227]
[1755416593814,0.2452,4471.7,4471.6,1.4848]
[1755416594812,3.2078,4472.1,4471.6,0.8783]
[1755416595012,0.8408,4472.5,4472.4,0.5939]
[1755416595212,1.2262,4472.5,4472.4,1.2227]
[1755416595513,1.2262,4472.5,4472.4,1.4848]
[1755416595712,1.4786,4472.5,4472.4,1.4848]
[1755416596316,0.5802,4472.5,4472.4,1.4848]
[1755416596814,0.8326,4472.5,4472.4,1.4848]
[1755416597015,0.5802,4472.5,4472.4,1.4848]
[1755416597211,0.8326,4472.5,4472.4,1.4848]
[1755416597611,1.21,4472.5,4472.4,1.4848]
[1755416598317,1.4672,4472.5,4472.4,1.4848]
[1755416598616,1.4672,4472.5,4472.4,1.2227]
[1755416599815,1.4672,4472.5,4472.4,1.4843]
[1755416600917,1.4672,4472.5,4472.4,1.2227]
[1755416601713,1.4672,4472.5,4472.4,20.6903]
[1755416601909,1.4672,4472.5,4472.4,21.0556]
[1755416603514,0.4181,4471.8,4471.7,3.7843]
[1755416603714,1.4865,4471.8,4471.7,25.1005]
[1755416608222,1.4865,4471.8,4471.7,24.8379]
[1755416609115,1.4865,4471.8,4471.7,4.4059]
[1755416609408,1.4865,4471.8,4471.7,24.8379]
[1755416610821,1.4865,4471.8,4471.7,25.0995]
[1755416619325,1.4865,4471.8,4471.7,24.8379]
[1755416624926,1.4865,4472.4,4472.3,0.7808]
[1755416625121,2.08251007,4472.4,4472.3,0.7808]
[1755416625326,2.08251007,4472.4,4472.1,20.428]
[1755416625526,1.4865,4472.2,4472.1,20.428]
[1755416625722,1.4865,4472.2,4471.9,0.3653]
[1755416625926,1.3226,4472.1,4472.0,20.427]
[1755416626117,1.4865,4472.1,4471.7,3.2078]
[1755416626318,0.582,4471.8,4471.7,20.427]
[1755416627029,1.4865,4471.8,4471.7,20.427]
[1755416630026,0.8631,4471.7,4471.5,21.0391]
[1755416630228,1.4454,4471.6,4471.5,21.4478]
[1755416630423,0.4978,4471.5,4471.1,3.4529]
[1755416630731,1.4454,4471.2,4471.1,3.8104]
[1755416630933,1.4454,4471.2,4471.1,24.6546]
[1755416631233,1.4454,4471.2,4471.1,24.8272]
[1755416632335,0.824,4471.2,4471.1,25.0723]
[1755416632730,0.6607,4471.2,4471.1,25.0723]
[1755416633035,3.2078,4472.0,4471.1,25.0723]
[1755416633036,0.2434,4472.0,4471.9,1.1913]
[1755416633242,0.2434,4472.0,4471.9,21.8645]
[1755416636036,0.4978,4472.0,4471.9,21.8645]
[1755416641245,0.824,4472.0,4471.9,21.8645]
[1755416641437,1.4454,4472.0,4471.9,21.8645]
[1755416642745,0.824,4472.0,4471.9,21.8645]
[1755416643643,0.2434,4472.6,4471.9,21.0073]
[1755416643845,1.17791549,4472.5,4472.4,0.5813]
[1755416644040,0.5823,4472.5,4472.4,21.8595]
[1755416644246,0.8257,4472.5,4472.4,21.8595]
[1755416644544,1.4454,4472.5,4472.4,21.6144]
[1755416645241,1.4454,4472.5,4472.4,21.3672]
[1755416645736,1.4454,4472.5,4472.4,21.6144]
[1755416646946,1.4454,4472.5,4472.4,20.421]
[1755416647947,1.4454,4472.5,4472.4,20.7859]
[1755416648339,1.4454,4472.5,4472.4,21.0236]
[1755416649443,0.824,4472.5,4472.4,21.8595]
[1755416649646,0.824,4472.5,4472.4,1.4385]
[1755416649846,1.4454,4472.5,4472.4,1.4385]
[1755416651247,0.824,4472.5,4472.4,1.4385]
[1755416652251,1.4454,4472.5,4472.4,1.4385]
[1755416652850,1.4454,4473.0,4472.9,0.4087]
[1755416653051,2.04074928,4473.0,4472.9,0.7736]
[1755416653248,2.04074928,4473.0,4472.9,0.6026]
[1755416653449,2.04074928,4473.0,4472.9,0.7736]
[1755416653753,2.04074928,4473.0,4472.9,1.1934]
[1755416654948,2.04074928,4473.0,4472.9,0.7736]
[1755416659362,2.04074928,4473.0,4472.9,1.0231]
[1755416661364,2.04074928,4473.0,4472.9,1.1818]
[1755416662263,1.43204928,4473.0,4472.6,0.2495]
[1755416662461,0.5823,4473.0,4472.9,1.1845]
[1755416662661,1.17809644,4473.0,4472.9,1.1845]
[1755416663061,2.05849644,4473.0,4472.9,1.1845]
[1755416663354,2.05849644,4473.0,4472.9,0.935]
[1755416663760,2.05849644,4473.0,4472.9,0.6145]
[1755416663957,0.5989,4472.6,4472.4,0.3629]
[1755416664162,1.4793,4472.5,4472.3,3.2078]
[1755416664461,0.5989,4472.5,4472.4,0.3629]
[1755416664666,0.5989,4472.5,4472.4,0.7763]
[1755416664865,0.5989,4472.5,4472.4,1.0258]
[1755416665068,1.4793,4472.5,4472.3,3.2078]
[1755416665259,1.4793,4472.4,4472.3,3.5707]
[1755416665464,1.4793,4472.4,4472.3,3.8223]
[1755416666364,1.4793,4472.4,4472.3,4.2336]
[1755416666667,1.4793,4472.4,4472.3,4.3923]
[1755416667063,4.5016,4472.4,4470.8,0.2632]
[1755416667267,3.2078,4471.8,4471.3,1.1982]
[1755416667457,3.2078,4471.8,4471.7,0.5721]
[1755416667666,3.2078,4471.8,4471.7,1.4477]
[1755416667958,3.44421554,4471.8,4471.7,1.4477]
[1755416668162,0.23641554,4471.8,4471.7,1.4477]
[1755416670070,0.2634,4472.2,4471.7,1.4477]
[1755416670266,0.49977603,4472.1,4472.0,1.4477]
[1755416670466,0.66427603,4472.1,4472.0,1.4477]
[1755416671261,0.40087603,4472.1,4471.1,0.6124]
[1755416671467,0.4287,4471.3,4471.2,0.8353]
[1755416671771,0.66507603,4471.3,4471.2,0.8353]
[1755416671960,0.66507603,4471.3,4471.2,1.4477]
[1755416672772,0.66501363,4471.3,4471.2,1.4477]
[1755416673074,0.66421363,4471.3,4471.2,1.4477]
[1755416677675,0.40081363,4471.3,4471.2,1.1982]
[1755416677869,0.66421363,4471.3,4471.2,0.8353]
[1755416678066,0.1645,4470.6,4470.5,0.6766]
[1755416678370,0.1645,4470.6,4470.5,0.2632]
[1755416678371,0.66501363,4470.6,4470.5,0.2632]
[1755416679174,0.2634,4470.5,4470.2,0.13285]
[1755416679373,3.6365,4470.3,4470.2,0.39605]
[1755416679574,3.87252384,4470.3,4470.2,0.39605]
[1755416679877,3.87235373,4470.3,4470.2,0.39605]
[1755416680479,3.87235373,4470.3,4470.2,1.17235]
[1755416680684,3.87235373,4470.3,4470.2,1.58055]
[1755416681976,0.40035373,4470.3,4470.2,1.58055]
[1755416682177,0.23585373,4470.3,4470.2,1.58055]
[1755416683376,0.2634,4470.5,4470.3,0.3629]
[1755416683580,0.49884676,4470.4,4470.3,0.935]
[1755416683775,0.23544676,4470.4,4470.3,0.935]
[1755416683970,3.2078,4470.9,4470.8,0.8353]
[1755416684277,3.44323204,4470.9,4470.8,1.4477]
[1755416684476,0.23543204,4470.9,4470.8,1.4477]
[1755416685177,0.23543204,4470.9,4470.4,20.468]
[1755416685178,0.4279,4471.2,4471.1,0.3205]
[1755416685377,0.66328702,4471.2,4471.1,1.4477]
[1755416687078,0.66408702,4471.2,4471.1,1.4477]
[1755416688483,0.66412782,4471.2,4471.1,1.4477]
[1755416689172,0.66412775,4471.2,4471.1,1.4477]
[1755416692484,0.66412775,4471.2,4470.4,20.468]
[1755416692691,0.63502775,4471.1,4471.0,0.4167]
[1755416692993,0.63502775,4471.1,4471.0,1.4685]
[1755416697600,0.65185464,4471.1,4471.0,1.4685]
[1755416697800,0.65185465,4471.1,4471.0,1.4685]
[1755416698200,0.65189055,4471.1,4471.0,1.4685]
[1755416700699,0.65201871,4471.1,4471.0,1.4685]
[1755416702004,0.3996,4470.6,4470.2,0.13285]
[1755416702303,0.3996,4470.3,4470.2,0.13285]
[1755416702501,0.65201871,4470.3,4470.2,0.13285]
[1755416702702,0.65217503,4470.3,4470.2,0.13285]
[1755416703103,1.24731736,4470.3,4470.2,0.13285]
[1755416703603,1.24731736,4470.3,4470.2,0.37275]
[1755416704207,0.65217503,4470.3,4470.2,0.37275]
[1755416705704,0.65201966,4470.3,4470.2,0.13285]
[1755416706095,0.65201966,4470.3,4470.2,0.37275]
[1755416706701,0.65199758,4470.3,4470.2,0.37275]
[1755416707207,0.65199758,4470.3,4470.2,0.53675]
[1755416708008,0.65199758,4470.3,4470.2,0.37275]
[1755416714103,0.65199758,4470.3,4470.2,0.91755]
[1755416714302,0.65199758,4470.3,4470.2,1.17025]
[1755416714799,0.65199758,4470.3,4470.2,0.78945]
[1755416715108,0.65178151,4470.3,4470.2,0.53675]
[1755416715707,0.65178151,4470.3,4470.2,0.91755]
[1755416716710,0.65178151,4470.3,4470.2,1.17025]
[1755416716909,0.65178151,4470.3,4470.2,1.60135]
[1755416718813,0.65258151,4470.3,4470.2,1.60135]
[1755416724117,0.4004,4470.3,4470.2,1.60135]
[1755416724315,0.6592088,4470.3,4470.2,1.60135]
[1755416724710,0.65922032,4470.3,4470.2,1.60135]
[1755416726817,0.65922032,4470.3,4470.2,0.96175]
[1755416727023,1.25403644,4470.3,4470.2,0.78945]
[1755416727210,1.25403644,4470.3,4470.2,1.18125]
[1755416729213,1.25403644,4470.3,4470.2,1.42935]
[1755416729820,1.25403644,4470.3,4470.2,1.59605]
[1755416733421,0.99521612,4470.3,4470.2,0.37275]
[1755416733618,1.25476954,4470.3,4470.2,0.13285]
[1755416733922,0.1663,4469.4,4469.3,1.0828]
[1755416734120,3.88875342,4469.4,4469.3,1.0828]
[1755416734319,4.48350688,4469.4,4469.3,1.0828]
[1755416734522,4.48350688,4469.4,4469.3,1.4746]
[1755416737220,4.22760688,4469.4,4469.3,1.4746]
[1755416738219,0.25949076,4469.4,4469.3,1.4746]
[1755416738718,3.46729076,4469.4,4469.3,1.4746]
[1755416739720,3.07139076,4469.4,4469.3,1.4969]
[1755416739920,4.0477,4470.0,4469.9,1.4746]
[1755416740119,5.03559356,4470.0,4469.9,1.4746]
[1755416740526,5.28659356,4470.0,4469.9,1.4746]
[1755416741226,3.80369356,4470.0,4469.9,1.4746]
[1755416742825,3.2078,4470.0,4469.9,1.4746]
[1755416743424,3.4629,4470.0,4469.9,1.4746]
[1755416743825,3.2078,4470.0,4469.9,1.4746]
[1755416746827,4.2789,4470.0,4469.9,1.4746]
[1755416747228,4.87484271,4470.0,4469.9,1.4746]
[1755416748430,5.28664271,4470.0,4469.9,1.4746]
[1755416750830,3.80374271,4470.0,4469.9,1.4746]
[1755416751432,3.2078,4470.0,4469.9,1.4746]
[1755416751930,3.45284624,4470.0,4469.9,1.4746]
[1755416752529,3.45284615,4470.0,4469.9,1.4746]
[1755416755930,4.51534615,4470.0,4469.9,1.4746]
[1755416758333,3.61424615,4470.0,4469.9,1.4746]
[1755416760333,3.45284615,4470.0,4469.9,1.4746]
[1755416760833,3.44902051,4470.0,4469.9,1.4746]
[1755416761037,0.24122051,4470.0,4469.9,1.4746]
[1755416761335,0.24116687,4470.0,4469.9,1.65034096]
[1755416761636,0.24116687,4470.0,4469.9,1.4746]
[1755416761824,3.2078,4470.8,4470.7,1.0887]
[1755416762030,3.2078,4470.8,4470.7,1.4618]
[1755416763625,4.1089,4470.8,4470.7,1.4618]
[1755416763825,4.2703,4470.8,4470.7,1.4618]
[1755416764032,1.4805,4470.8,4470.7,1.4618]
[1755416765035,0.4172,4470.8,4470.7,1.4618]
[1755416765336,0.4172,4470.8,4470.3,3.2078]
[1755416765337,0.2558,4471.1,4471.0,1.4618]
[1755416765834,1.4805,4471.1,4471.0,1.4618]
[1755416769132,4.6883,4471.4,4471.3,1.4618]
[1755416770225,4.2796,4471.4,4471.3,1.4618]
[1755416770430,4.0207,4471.4,4471.3,1.4618]
[1755416770829,4.5261,4471.4,4471.3,1.4618]
[1755416772333,3.2078,4471.4,4471.3,1.4618]
[1755416772733,0.3957,4471.9,4471.3,1.4618]
[1755416772938,0.3957,4471.9,4471.4,0.8858]
[1755416773133,0.5794,4471.9,4471.8,1.4618]
[1755416773537,0.4172,4471.9,4471.8,1.4618]
[1755416773939,0.65433507,4471.9,4471.8,1.4618]
[1755416775237,1.71763507,4471.9,4471.8,1.4618]
[1755416777133,1.71763507,4471.9,4471.8,1.2036]
[1755416777738,1.71763507,4471.9,4471.8,1.4618]
[1755416778140,1.4805,4471.9,4471.8,1.4618]
[1755416778334,1.71746389,4471.9,4471.8,1.4618]
[1755416778642,1.71744261,4471.9,4471.8,1.4618]
[1755416784253,1.71528585,4471.9,4471.8,1.4618]
[1755416785453,1.71535226,4471.9,4471.8,1.4618]
[1755416786648,1.71535226,4471.9,4471.2,3.2078]
[1755416786843,1.71175226,4471.8,4471.7,1.2262]
[1755416787053,1.71175226,4471.8,4471.7,1.4717]
[1755416787254,0.23485226,4471.8,4471.7,1.4717]
[1755416787457,0.23502002,4471.8,4471.7,0.5685]
[1755416787758,1.4769,4471.9,4471.8,1.4717]
[1755416787969,1.71192798,4471.9,4471.8,1.4717]
[1755416791354,1.71192798,4471.9,4471.2,3.2078]
[1755416791559,0.2615,4471.3,4471.2,3.2078]
[1755416791762,1.71192798,4471.3,4471.2,4.0511]
[1755416792269,1.71192798,4471.3,4471.2,4.434]
[1755416792467,1.71192798,4471.3,4471.2,1.2262]
[1755416793170,1.4769,4470.7,4470.6,1.4717]
[1755416793667,1.71235373,4470.7,4470.6,1.4717]
[1755416794462,1.21585373,4470.7,4470.6,1.4717]
[1755416796359,0.2388,4471.5,4470.6,1.4717]
[1755416796565,1.4769,4471.5,4471.4,0.5685]
[1755416796762,1.71242251,4471.5,4471.4,0.5833]
[1755416797167,1.71241969,4471.5,4471.4,0.5833]
[1755416797367,1.71241969,4471.5,4471.4,1.2262]
[1755416797764,1.71241969,4471.5,4471.4,1.4717]
[1755416800866,0.66521969,4471.5,4471.4,1.4717]
[1755416801066,1.71241969,4471.5,4471.4,1.4717]
[1755416804466,1.71241969,4471.5,4471.4,0.8433]
[1755416804666,1.71241969,4471.5,4471.4,0.323]
[1755416805568,0.1682,4470.7,4470.6,1.4717]
[1755416805772,1.0409,4470.7,4470.6,1.4717]
[1755416805974,1.27655996,4470.7,4470.6,1.4717]
[1755416806267,1.27655812,4470.7,4470.6,1.4717]
[1755416807172,0.78005812,4470.7,4470.6,1.4717]
[1755416807361,0.23565812,4470.7,4470.6,1.4717]
[1755416808972,0.23565077,4470.7,4470.6,1.4717]
[1755416809867,0.23565077,4470.7,4470.6,1.494]
[1755416810268,0.23565077,4470.7,4470.6,1.4717]
[1755416814982,0.3733,4471.0,4470.6,0.5685]
[1755416815183,0.23464441,4470.9,4470.8,0.5847]
[1755416815380,0.60794441,4470.9,4470.8,1.483]
[1755416816282,1.09094441,4470.9,4470.8,1.483]
[1755416816679,0.23464441,4470.9,4470.8,1.483]
[1755416816888,0.3733,4471.5,4470.8,0.5847]
[1755416817086,1.4377,4471.5,4471.4,0.5847]
[1755416817384,1.4377,4471.5,4471.4,1.483]